bitfinex-derivatives/quotes_BTCF0:USTF0_20250329
["timestamp","ask_amount","ask_price","bid_price","bid_amount"]
[1743226524159,0.1904589,83883.0,83882.0,0.1676203]
[1743226524670,0.1976916,83883.0,83882.0,0.1676203]
[1743226527175,0.1976916,83883.0,83882.0,0.04836]
[1743226527759,0.3145316,83883.0,83882.0,0.04836]
[1743226527969,0.323867,83883.0,83882.0,0.04836]
[1743226528369,0.1192646,83879.0,83878.0,0.21421886]
[1743226528576,0.1368327,83879.0,83878.0,0.21525886]
[1743226528875,0.1368327,83879.0,83878.0,0.33452486]
[1743226530067,0.4976327,83879.0,83878.0,0.33452486]
[1743226530866,0.5006327,83879.0,83878.0,0.21525886]
[1743226531066,0.5026327,83879.0,83878.0,0.21525886]
[1743226531667,0.5354327,83879.0,83878.0,0.21525886]
[1743226532071,0.5260973,83879.0,83878.0,0.21525886]
[1743226532963,0.5260973,83879.0,83878.0,0.00104]
[1743226533277,0.5260973,83879.0,83876.0,0.1192685]
[1743226533278,0.1192674,83877.0,83876.0,0.1192685]
[1743226533479,0.12022741,83877.0,83876.0,0.1198685]
[1743226533875,0.18612741,83877.0,83876.0,0.1198685]
[1743226534175,0.20268365,83877.0,83876.0,0.1198685]
[1743226534368,0.20468365,83877.0,83876.0,0.1198685]
[1743226534570,0.20668365,83877.0,83876.0,0.1198685]
[1743226534778,0.20668436,83877.0,83876.0,0.1198685]
[1743226535170,0.19736011,83877.0,83876.0,0.1198685]
[1743226537280,0.07809271,83877.0,83876.0,0.1198685]
[1743226537478,0.0771327,83877.0,83876.0,0.3798685]
[1743226537779,0.19736011,83877.0,83876.0,0.4126685]
[1743226537981,0.19736011,83877.0,83876.0,0.4770685]
[1743226538468,0.19736011,83877.0,83876.0,0.1528685]
[1743226538780,0.19736011,83877.0,83876.0,0.1198685]
[1743226540478,0.19736011,83877.0,83876.0,0.33408736]
[1743226541075,0.07809271,83877.0,83876.0,0.36628736]
[1743226541470,0.19736011,83877.0,83876.0,0.36628736]
[1743226543985,0.19736011,83877.0,83876.0,0.1520685]
[1743226546387,0.19736011,83877.0,83876.0,0.1198685]
[1743226549584,0.07809271,83877.0,83876.0,0.1198685]
[1743226549787,0.0323,83890.0,83878.0,0.0596328]
[1743226549979,0.00096001,83885.0,83884.0,0.1192575]
[1743226550179,0.00096001,83885.0,83884.0,0.3799375]
[1743226550884,0.00096001,83885.0,83884.0,0.4448375]
[1743226551189,0.00896001,83885.0,83884.0,0.4448375]
[1743226551386,0.04006001,83885.0,83884.0,0.4448375]
[1743226553382,0.0391,83885.0,83884.0,0.4448375]
[1743226554392,0.15931611,83885.0,83884.0,0.4448375]
[1743226554585,0.19151611,83885.0,83884.0,0.4448375]
[1743226554784,0.19151611,83885.0,83884.0,0.1848375]
[1743226555982,0.55231611,83885.0,83884.0,0.00068]
[1743226556190,0.55231611,83885.0,83884.0,0.1199375]
[1743226556391,0.55231611,83885.0,83884.0,0.00068]
[1743226556889,0.1192575,83884.0,83883.0,0.21421886]
[1743226557090,0.1202575,83884.0,83883.0,0.21485886]
[1743226557292,0.1860575,83884.0,83883.0,0.21485886]
[1743226558286,0.1890575,83884.0,83883.0,0.33411776]
[1743226559284,0.1890575,83884.0,83883.0,0.21485886]
[1743226559489,0.1930575,83884.0,83883.0,0.21485886]
[1743226560796,0.5538575,83884.0,83883.0,0.21485886]
[1743226560996,0.5538575,83884.0,83883.0,0.33411776]
[1743226561593,0.5538575,83884.0,83883.0,0.1198989]
[1743226562191,0.5538575,83884.0,83883.0,0.00064]
[1743226562394,0.1192703,83875.0,83874.0,0.45293867]
[1743226562590,0.12023031,83875.0,83874.0,0.27463277]
[1743226562994,0.12754623,83875.0,83874.0,0.27463277]
[1743226563191,0.18964623,83875.0,83874.0,0.27463277]
[1743226563799,0.19164623,83875.0,83874.0,0.27463277]
[1743226564297,0.19164623,83875.0,83874.0,0.21499767]
[1743226564487,0.55244623,83875.0,83874.0,0.21499767]
[1743226565097,0.55244623,83875.0,83874.0,0.00077881]
[1743226565298,0.56180713,83875.0,83874.0,0.00077881]
[1743226566300,0.55244623,83875.0,83874.0,0.00077881]
[1743226566493,0.56440802,83875.0,83874.0,0.00077881]
[1743226567293,0.56440802,83875.0,83874.0,0.12005051]
[1743226568400,0.43317593,83875.0,83874.0,0.12005051]
[1743226568594,0.66900623,83875.0,83874.0,0.15105051]
[1743226568792,0.07237593,83875.0,83874.0,0.15105051]
[1743226569100,0.15974623,83875.0,83874.0,0.15105051]
[1743226569405,0.04047593,83875.0,83874.0,0.15105051]
[1743226570304,0.01027593,83875.0,83874.0,0.15105051]
[1743226570801,0.00296001,83875.0,83874.0,0.15105051]
[1743226570996,0.002,83875.0,83874.0,0.15105051]
[1743226572798,0.002,83875.0,83874.0,0.42105051]
[1743226575505,0.002,83875.0,83874.0,0.78185051]
[1743226576593,0.002,83875.0,83874.0,0.51185051]
[1743226577412,0.00296001,83875.0,83874.0,0.54485051]
[1743226577714,0.002,83875.0,83874.0,0.54485051]
[1743226578607,0.0332,83875.0,83874.0,0.54485051]
[1743226580709,0.0332,83875.0,83874.0,0.67485051]
[1743226582212,0.0332,83875.0,83874.0,0.54485051]
[1743226582609,0.1524703,83875.0,83874.0,0.54485051]
[1743226582816,0.15343031,83875.0,83874.0,0.54485051]
[1743226583212,0.1524703,83875.0,83874.0,0.54485051]
[1743226583414,0.1534703,83875.0,83874.0,0.54485051]
[1743226584304,0.1534703,83875.0,83874.0,0.00077881]
[1743226585218,0.1534703,83875.0,83874.0,0.12005051]
[1743226586210,0.16543756,83875.0,83874.0,0.12005051]
[1743226586606,0.17266401,83875.0,83874.0,0.12005051]
[1743226587023,0.17266401,83875.0,83874.0,0.00077881]
[1743226587722,0.17266401,83875.0,83874.0,0.12005051]
[1743226590133,0.17266401,83875.0,83874.0,0.00077881]
[1743226590334,0.16069675,83875.0,83874.0,0.11945051]
[1743226590528,0.16069675,83875.0,83874.0,0.12041051]
[1743226590834,0.17248444,83875.0,83874.0,0.12041051]
[1743226591025,0.17248444,83875.0,83874.0,0.00113881]
[1743226591419,0.17248444,83875.0,83874.0,0.00017881]
[1743226592024,0.17248444,83875.0,83874.0,0.11945051]
[1743226592228,0.17248444,83875.0,83874.0,0.12013051]
[1743226592229,0.18183069,83875.0,83874.0,0.12013051]
[1743226592429,0.18183063,83875.0,83874.0,0.12013051]
[1743226593530,0.18083063,83875.0,83874.0,0.12013051]
[1743226593725,0.18383063,83875.0,83874.0,0.12013051]
[1743226593927,0.18283063,83875.0,83874.0,0.12013051]
[1743226594224,0.18683063,83875.0,83874.0,0.12013051]
[1743226595022,0.18283063,83875.0,83874.0,0.12013051]
[1743226595236,0.18683063,83875.0,83874.0,0.12013051]
[1743226595640,0.30311063,83875.0,83874.0,0.12013051]
[1743226595834,0.05577264,83875.0,83874.0,0.12013051]
[1743226596234,0.16169675,83875.0,83874.0,0.18433051]
[1743226596428,0.16569675,83875.0,83874.0,0.18433051]
[1743226596838,0.16669675,83875.0,83874.0,0.19630393]
[1743226597441,0.16669675,83875.0,83874.0,0.18433051]
[1743226598843,0.16569675,83875.0,83874.0,0.18433051]
[1743226599830,0.16169675,83875.0,83874.0,0.18433051]
[1743226600031,0.16469675,83875.0,83874.0,0.18433051]
[1743226600639,0.16169675,83875.0,83874.0,0.18433051]
[1743226600834,0.16469675,83875.0,83874.0,0.18433051]
[1743226601433,0.16169675,83875.0,83874.0,0.18433051]
[1743226601635,0.16469675,83875.0,83874.0,0.18433051]
[1743226604037,0.16169675,83875.0,83874.0,0.18433051]
[1743226604243,0.16469675,83875.0,83874.0,0.18433051]
[1743226604741,0.16169675,83875.0,83874.0,0.18433051]
[1743226605035,0.16469675,83875.0,83874.0,0.18433051]
[1743226605440,0.1574703,83875.0,83874.0,0.18433051]
[1743226606729,0.0382,83875.0,83874.0,0.18433051]
[1743226607239,0.1574703,83875.0,83874.0,0.18433051]
[1743226607438,0.1544703,83875.0,83874.0,0.18433051]
[1743226607638,0.1574703,83875.0,83874.0,0.18433051]
[1743226608945,0.0382,83875.0,83874.0,0.18433051]
[1743226610632,0.004,83875.0,83874.0,0.18433051]
[1743226610830,0.006,83875.0,83874.0,0.18433051]
[1743226611840,0.14235402,83883.0,83882.0,0.1192603]
[1743226612033,0.14331403,83883.0,83882.0,0.3898603]
[1743226612342,0.14235402,83883.0,83882.0,0.3898603]
[1743226612543,0.14235402,83883.0,83882.0,0.4545603]
[1743226613646,0.14635402,83883.0,83882.0,0.4545603]
[1743226613831,0.15035402,83883.0,83882.0,0.4545603]
[1743226614238,0.063,83889.0,83888.0,0.1192518]
[1743226614437,0.06396001,83889.0,83888.0,0.1198518]
[1743226615033,0.06396001,83889.0,83888.0,0.1819518]
[1743226615342,0.06996001,83889.0,83888.0,0.1819518]
[1743226616850,0.18921041,83889.0,83888.0,0.1819518]
[1743226617049,0.19321041,83889.0,83888.0,0.1819518]
[1743226618344,0.19321041,83889.0,83888.0,0.2296318]
[1743226622445,0.07396001,83889.0,83888.0,0.2296318]
[1743226622651,0.00017881,83891.0,83888.0,0.8604318]
[1743226622849,0.0632,83893.0,83891.0,0.1788711]
[1743226623054,0.0632,83893.0,83892.0,0.1838461]
[1743226623252,0.06392,83893.0,83892.0,0.1844861]
[1743226624152,0.06792,83893.0,83892.0,0.1844861]
[1743226624657,0.06992,83893.0,83892.0,0.5452861]
[1743226624857,0.07392,83893.0,83892.0,0.5452861]
[1743226625847,0.0732,83893.0,83892.0,0.5452861]
[1743226626148,0.07388,83893.0,83892.0,0.5452861]
[1743226626345,0.0732,83893.0,83892.0,0.5452861]
[1743226629849,0.0732,83893.0,83892.0,0.55734693]
[1743226630343,0.0596032,83920.0,83913.0,0.1192163]
[1743226630545,1.02545064,83914.0,83913.0,0.1192163]
[1743226631361,1.14466644,83914.0,83913.0,0.1192163]
[1743226631547,1.02545064,83914.0,83913.0,0.1192163]
[1743226631755,1.01356,83914.0,83913.0,0.1192163]
[1743226632059,1.02542446,83914.0,83913.0,0.1192163]
[1743226632450,1.1327749,83914.0,83913.0,0.1506163]
[1743226633452,1.1445989,83914.0,83913.0,0.1506163]
[1743226633853,1.2077989,83914.0,83913.0,0.1506163]
[1743226634356,1.2077989,83914.0,83913.0,0.1192163]
[1743226634562,0.1192191,83912.0,83911.0,0.1192181]
[1743226634859,0.1198991,83912.0,83911.0,0.1192181]
[1743226635060,0.1809991,83912.0,83911.0,0.1192181]
[1743226637251,0.06178,83912.0,83911.0,0.1192181]
[1743226637653,0.06178,83912.0,83911.0,0.1497181]
[1743226638256,0.06178,83912.0,83911.0,0.1822181]
[1743226638957,0.1809977,83912.0,83911.0,0.1822181]
[1743226640755,0.06178,83912.0,83911.0,0.1822181]
[1743226642052,0.1809977,83912.0,83911.0,0.1822181]
[1743226644770,0.1809977,83912.0,83911.0,0.2298781]
[1743226645957,0.06178,83912.0,83911.0,0.2298781]
[1743226646554,0.06178,83912.0,83911.0,0.2304781]
[1743226648261,0.1809977,83912.0,83911.0,0.2304781]
[1743226656463,0.06178,83912.0,83911.0,0.2304781]
[1743226657577,0.06178,83912.0,83911.0,0.2904781]
[1743226657578,0.00068,83912.0,83911.0,0.2904781]
[1743226660669,0.0324,83916.0,83915.0,0.1192134]
[1743226660870,0.03308,83916.0,83915.0,0.1198134]
[1743226661567,0.03308,83916.0,83915.0,0.1841134]
[1743226662277,0.00068,83916.0,83915.0,0.1841134]
[1743226664577,0.119892,83916.0,83915.0,0.1841134]
[1743226664876,0.00068,83916.0,83915.0,0.39841362]
[1743226667874,0.03338,83916.0,83915.0,0.39841362]
[1743226668763,0.00068,83916.0,83915.0,0.39841362]
[1743226668964,0.46745816,83921.0,83920.0,0.1192063]
[1743226669176,0.46825816,83921.0,83920.0,0.3899263]
[1743226669770,0.46825816,83921.0,83920.0,0.4502263]
[1743226670772,0.46825816,83921.0,83920.0,0.4978863]
[1743226671174,0.10745816,83921.0,83920.0,0.4978863]
[1743226671369,0.10665816,83921.0,83920.0,0.2278863]
[1743226671674,0.22586306,83921.0,83920.0,0.1675863]
[1743226671875,0.28868306,83921.0,83920.0,0.1675863]
[1743226672074,0.32058306,83921.0,83920.0,0.1675863]
[1743226672275,0.2139249,83921.0,83920.0,0.1675863]
[1743226672471,0.09472,83921.0,83920.0,0.1675863]
[1743226673165,0.09472,83921.0,83920.0,0.1981863]
[1743226676374,0.2139249,83921.0,83920.0,0.1981863]
[1743226678272,0.09472,83921.0,83920.0,0.1981863]
[1743226679474,0.00072,83921.0,83920.0,0.1981863]
[1743226680472,0.03402,83921.0,83920.0,0.1981863]
[1743226681979,0.00072,83921.0,83920.0,0.1981863]
[1743226682676,0.00017881,83922.0,83921.0,0.1192049]
[1743226682877,0.00089881,83922.0,83921.0,0.1199249]
[1743226683077,0.03209881,83922.0,83921.0,0.1820249]
[1743226683271,0.06429881,83922.0,83921.0,0.1820249]
[1743226683880,0.18350231,83922.0,83921.0,0.1820249]
[1743226684271,0.06429881,83922.0,83921.0,0.1820249]
[1743226685684,0.18350231,83922.0,83921.0,0.1820249]
[1743226686281,0.06429881,83922.0,83921.0,0.1820249]
[1743226687684,0.18350231,83922.0,83921.0,0.1820249]
[1743226687879,0.09529881,83922.0,83921.0,0.1820249]
[1743226688075,0.21450231,83922.0,83921.0,0.1820249]
[1743226690188,0.09529881,83922.0,83921.0,0.1820249]
[1743226690385,0.09457881,83922.0,83921.0,0.1820249]
[1743226690785,0.09529881,83922.0,83921.0,0.1820249]
[1743226692280,0.21450231,83922.0,83921.0,0.1820249]
[1743226697994,0.21450231,83922.0,83921.0,0.2296849]
[1743226703787,0.57530231,83922.0,83921.0,0.2296849]
[1743226706404,0.45609881,83922.0,83921.0,0.2296849]
[1743226706891,0.57530231,83922.0,83921.0,0.2296849]
[1743226708399,0.21450231,83922.0,83921.0,0.2296849]
[1743226708592,0.57530231,83922.0,83921.0,0.2296849]
[1743226710399,0.21450231,83922.0,83921.0,0.2296849]
[1743226710693,0.57530231,83922.0,83921.0,0.2296849]
[1743226711292,0.21450231,83922.0,83921.0,0.2296849]
[1743226711599,0.57530231,83922.0,83921.0,0.2296849]
[1743226711801,0.21450231,83922.0,83921.0,0.2296849]
[1743226712003,0.57530231,83922.0,83921.0,0.2296849]
[1743226713896,0.45609881,83922.0,83921.0,0.2296849]
[1743226714404,0.36169881,83922.0,83921.0,0.2296849]
[1743226714594,0.36169881,83922.0,83921.0,0.5096849]
[1743226718002,0.00089881,83922.0,83921.0,0.5096849]
[1743226719208,0.00089881,83922.0,83921.0,0.79552648]
[1743226721799,0.00017881,83922.0,83921.0,0.79552648]
[1743226722306,0.00093881,83922.0,83921.0,0.79552648]
[1743226723202,0.00093881,83922.0,83921.0,0.5096849]
[1743226723404,0.00017881,83922.0,83921.0,0.5096849]
[1743226726911,0.00017881,83922.0,83921.0,0.2296849]
[1743226727208,0.48098231,83922.0,83921.0,0.04838]
[1743226727603,0.49210451,83922.0,83921.0,0.1675849]
[1743226728310,0.49267255,83922.0,83921.0,0.1675849]
[1743226732105,0.63518279,83922.0,83921.0,0.1675849]
[1743226735307,0.49267255,83922.0,83921.0,0.1675849]
[1743226741022,0.55657255,83922.0,83921.0,0.1675849]
[1743226743121,0.67133255,83922.0,83921.0,0.1675849]
[1743226743428,0.67133255,83922.0,83921.0,0.2289849]
[1743226744623,0.65964231,83922.0,83921.0,0.2289849]
[1743226744826,0.54488231,83922.0,83921.0,0.2289849]
[1743226745124,0.65964231,83922.0,83921.0,0.2289849]
[1743226747729,0.36177881,83922.0,83921.0,0.2289849]
[1743226748226,0.36177881,83922.0,83921.0,0.24079412]
[1743226748430,0.36177881,83922.0,83921.0,0.2289849]
[1743226748621,0.48098231,83922.0,83921.0,0.2289849]
[1743226752732,0.36177881,83922.0,83921.0,0.2289849]
[1743226754533,0.48098231,83922.0,83921.0,0.2289849]
[1743226754733,0.36177881,83922.0,83921.0,0.2289849]
[1743226755630,0.00097881,83922.0,83921.0,0.2289849]
[1743226756237,0.00097881,83922.0,83921.0,0.3889849]
[1743226757338,0.00097881,83922.0,83921.0,0.6033146]
[1743226757543,0.00097881,83922.0,83921.0,0.6185362]
[1743226758432,0.00097881,83922.0,83921.0,0.6033146]
[1743226758629,0.00097881,83922.0,83921.0,0.61872515]
[1743226760626,0.00017881,83922.0,83921.0,0.61872515]
[1743226761539,0.00017881,83922.0,83921.0,0.40439545]
[1743226768046,0.00017881,83922.0,83921.0,0.40447659]
[1743226769148,0.00017881,83922.0,83921.0,0.24447659]
[1743226769844,0.00077882,83922.0,83921.0,0.53035925]
[1743226770045,0.00017881,83922.0,83921.0,0.53035925]
[1743226770446,0.06617881,83922.0,83921.0,0.53035925]
[1743226772151,0.06617881,83922.0,83921.0,0.53022477]
[1743226773652,0.06617881,83922.0,83921.0,0.24434211]
[1743226774555,0.06617881,83922.0,83921.0,0.24435994]
[1743226775642,0.06697881,83922.0,83921.0,0.24435994]
[1743226775957,0.06617881,83922.0,83921.0,0.24435994]
[1743226776656,0.06685881,83922.0,83921.0,0.24435994]
[1743226776844,0.06617881,83922.0,83921.0,0.24435994]
[1743226778362,0.06689881,83922.0,83921.0,0.24435994]
[1743226780562,0.06617881,83922.0,83921.0,0.24435994]
[1743226781653,0.06689881,83922.0,83921.0,0.21345994]
[1743226782062,0.06689881,83922.0,83921.0,0.18295994]
[1743226782254,0.06617881,83922.0,83921.0,0.18295994]
[1743226782655,0.06693881,83922.0,83921.0,0.1675849]
[1743226785562,0.06693881,83922.0,83921.0,0.18280906]
[1743226785960,0.06693881,83922.0,83921.0,0.21390906]
[1743226786468,0.18614231,83922.0,83921.0,0.21390906]
[1743226786669,0.18614231,83922.0,83921.0,0.1986849]
[1743226786867,0.06693881,83922.0,83921.0,0.1986849]
[1743226787559,0.06693881,83922.0,83921.0,0.49997437]
[1743226790157,0.06693881,83922.0,83921.0,0.53027437]
[1743226791168,0.06693881,83922.0,83921.0,0.53041907]
[1743226795172,0.1068714,83923.0,83922.0,0.1192035]
[1743226795376,0.0309,83924.0,83923.0,0.1192021]
[1743226795572,0.03182,83924.0,83923.0,0.19815553]
[1743226795778,0.06192,83924.0,83923.0,0.19815553]
[1743226796679,0.061,83924.0,83923.0,0.19815553]
[1743226798575,0.061,83924.0,83923.0,0.24581553]
[1743226799882,0.06192,83924.0,83923.0,0.24581553]
[1743226800378,0.00092,83924.0,83923.0,0.52581553]
[1743226800573,0.1068714,83927.0,83925.0,0.1191992]
[1743226800777,0.10783141,83927.0,83926.0,0.19899123]
[1743226800975,0.10783141,83927.0,83926.0,0.45995123]
[1743226801783,0.13793141,83927.0,83926.0,0.45995123]
[1743226803776,0.03106001,83927.0,83926.0,0.45995123]
[1743226805679,0.06346001,83927.0,83926.0,0.45995123]
[1743226805881,0.06346001,83927.0,83926.0,0.46010327]
[1743226815494,0.14268905,83932.0,83931.0,0.1191907]
[1743226815693,0.14392906,83932.0,83931.0,0.38473617]
[1743226815899,0.14388906,83932.0,83931.0,0.38593617]
[1743226816395,0.14388906,83932.0,83931.0,0.45053617]
[1743226816986,0.14388906,83932.0,83931.0,0.20053617]
[1743226817794,0.17578906,83932.0,83931.0,0.20053617]
[1743226818897,0.03327882,83932.0,83931.0,0.20053617]
[1743226819099,0.03207881,83932.0,83931.0,0.20053617]
[1743226819797,0.03331882,83932.0,83931.0,0.20053617]
[1743226819988,0.03207881,83932.0,83931.0,0.20053617]
[1743226821193,0.03207881,83932.0,83931.0,0.20049223]
[1743226822499,0.03335881,83932.0,83931.0,0.20049223]
[1743226822688,0.03207881,83932.0,83931.0,0.20049223]
[1743226823283,0.03275881,83932.0,83931.0,0.24814223]
[1743226823498,0.03207881,83932.0,83931.0,0.24814223]
[1743226825901,0.03207881,83932.0,83931.0,0.52814223]
[1743226827308,0.00017881,83932.0,83931.0,0.52814223]
[1743226827598,0.00017881,83932.0,83931.0,0.81360379]
[1743226828801,0.00017881,83932.0,83931.0,0.81344663]
[1743226830695,0.00017881,83932.0,83931.0,0.52798507]
[1743226831602,0.0622,83934.0,83933.0,0.1191879]
[1743226831793,0.0622,83934.0,83933.0,0.13577227]
[1743226832394,0.0622,83934.0,83933.0,0.14771204]
[1743226837508,0.0308,83934.0,83933.0,0.14771204]
[1743226837701,0.0313,83935.0,83934.0,0.1191865]
[1743226837907,0.063,83941.0,83940.0,0.1191779]
[1743226838108,0.06420001,83941.0,83940.0,0.13572224]
[1743226838308,0.00017881,83942.0,83941.0,0.1191765]
[1743226838509,0.03157881,83942.0,83941.0,0.47848084]
[1743226839209,0.06397881,83942.0,83941.0,0.47848084]
[1743226839610,0.09687881,83942.0,83941.0,0.47848084]
[1743226849911,0.09687881,83942.0,83941.0,0.47851144]
[1743226850317,0.09687881,83942.0,83941.0,0.52616144]
[1743226852018,0.09687881,83942.0,83941.0,0.88696144]
[1743226859522,0.09687881,83942.0,83941.0,0.88701094]
[1743226860915,0.09687881,83942.0,83941.0,0.52621094]
[1743226863222,0.09687881,83942.0,83941.0,0.88325354]
[1743226866609,0.09687881,83942.0,83941.0,0.88330835]
[1743226867022,0.09687881,83942.0,83941.0,1.26602624]
[1743226868529,0.06547881,83942.0,83941.0,1.26602624]
[1743226868717,0.0303,83954.0,83953.0,0.1191595]
[1743226868918,0.0303,83954.0,83953.0,0.13627875]
[1743226870434,0.1494581,83954.0,83953.0,0.13639607]
[1743226871930,0.0303,83954.0,83953.0,0.13639607]
[1743226872133,0.0303,83954.0,83953.0,0.18403607]
[1743226873027,0.0608,83954.0,83953.0,0.18403607]
[1743226875728,0.0608,83954.0,83953.0,0.39837082]
[1743226875931,0.0608,83954.0,83953.0,0.42857082]
[1743226876132,0.0608,83954.0,83953.0,0.42861509]
[1743226879830,0.0608,83954.0,83953.0,0.21428034]
[1743226880334,0.1799581,83954.0,83953.0,0.21428034]
[1743226883142,0.1799581,83954.0,83953.0,0.23970861]
[1743226885232,0.1799581,83954.0,83953.0,0.21428034]
[1743226886039,0.1799581,83954.0,83953.0,0.21434657]
[1743226886237,0.5407581,83954.0,83953.0,0.21434657]
[1743226886738,0.1799581,83954.0,83953.0,0.21434657]
[1743226886941,0.5407581,83954.0,83953.0,0.21434657]
[1743226887739,0.5407581,83954.0,83953.0,0.21432637]
[1743226889529,0.1799581,83954.0,83953.0,0.1986395]
[1743226889735,0.5407581,83954.0,83953.0,0.21426866]
[1743226890543,0.5407581,83954.0,83953.0,0.18406866]
[1743226891543,0.5407581,83954.0,83953.0,0.18404701]
[1743226893534,0.5407581,83954.0,83953.0,0.21704701]
[1743226893845,0.1799581,83954.0,83953.0,0.21704701]
[1743226894038,0.5407581,83954.0,83953.0,0.21704701]
[1743226894845,0.1799581,83954.0,83953.0,0.43150414]
[1743226895038,0.5407581,83954.0,83953.0,0.43150414]
[1743226901564,0.5407581,83954.0,83953.0,0.21704701]
[1743226909472,0.5407581,83954.0,83953.0,0.24784701]
[1743226912573,0.5407581,83954.0,83953.0,0.46230501]
[1743226914072,0.5407581,83954.0,83953.0,0.34314551]
[1743226914675,0.5407581,83954.0,83953.0,0.30995736]
[1743226914879,0.6553981,83954.0,83953.0,0.30995736]
[1743226915064,0.6553981,83954.0,83953.0,0.42911686]
[1743226916471,0.6553981,83954.0,83953.0,0.46181686]
[1743226916673,0.6553981,83954.0,83953.0,0.34265736]
[1743226921379,1.0161981,83954.0,83953.0,0.34265736]
[1743226921673,1.0161981,83954.0,83953.0,0.12819936]
[1743226921876,1.0161981,83954.0,83953.0,0.12815936]
[1743226923376,1.0161981,83954.0,83953.0,0.24731886]
[1743226925384,1.0161981,83954.0,83953.0,0.12815936]
[1743226927080,0.1191652,83949.0,83948.0,0.214458]
[1743226927380,0.1191652,83949.0,83948.0,0.216018]
[1743226927976,0.1819652,83949.0,83948.0,0.216018]
[1743226929782,0.5427652,83949.0,83948.0,0.216018]
[1743226931382,0.5427652,83949.0,83948.0,0.00156]
[1743226931588,0.119168,83947.0,83946.0,0.0317]
[1743226931970,0.479968,83947.0,83946.0,0.0317]
[1743226932477,0.542768,83947.0,83946.0,0.0317]
[1743226933884,0.1191694,83946.0,83945.0,0.0001787]
[1743226934078,0.1191779,83940.0,83939.0,0.1677219]
[1743226934388,0.1191907,83931.0,83930.0,0.3570426]
[1743226934571,0.60663909,83931.0,83930.0,0.3586826]
[1743226935392,0.60663909,83931.0,83930.0,0.00164]
[1743226939587,0.60663909,83931.0,83927.0,0.0323]
[1743226939588,0.119195,83928.0,83927.0,0.0323]
[1743226939790,0.479995,83928.0,83927.0,0.0323]
[1743226941374,0.594635,83928.0,83927.0,0.0323]
[1743226941583,0.596635,83928.0,83927.0,0.0323]
[1743226943580,0.661635,83928.0,83927.0,0.0323]
[1743226950094,0.300835,83928.0,83927.0,0.0323]
[1743226950395,1.022435,83928.0,83927.0,0.0323]
[1743226950590,0.300835,83928.0,83927.0,0.0323]
[1743226950792,1.022435,83928.0,83927.0,0.0323]
[1743226952286,0.300835,83928.0,83927.0,0.0323]
[1743226952482,1.022435,83928.0,83927.0,0.0323]
[1743226953087,0.300835,83928.0,83927.0,0.0323]
[1743226953293,1.022435,83928.0,83927.0,0.0323]
[1743226955496,1.12890473,83928.0,83927.0,0.0323]
[1743226955693,0.40730473,83928.0,83927.0,0.0323]
[1743226955904,1.12890473,83928.0,83927.0,0.0323]
[1743226958494,1.09680473,83928.0,83927.0,0.0323]
[1743226958994,0.990335,83928.0,83927.0,0.0323]
[1743226959194,0.875695,83928.0,83927.0,0.0323]
[1743226959498,0.990335,83928.0,83927.0,0.0323]
[1743226963692,0.957435,83928.0,83927.0,0.0323]
[1743226967110,1.01538631,83928.0,83927.0,0.0323]
[1743226967311,0.90074631,83928.0,83927.0,0.0323]
[1743226967509,1.01534631,83928.0,83927.0,0.0323]
[1743226980232,0.65454631,83928.0,83927.0,0.0323]
[1743226983436,0.29374631,83928.0,83927.0,0.0323]
[1743226983637,0.65454631,83928.0,83927.0,0.03386]
[1743226983832,0.65454631,83928.0,83927.0,0.0323]
[1743226991639,0.65254631,83928.0,83927.0,0.0323]
[1743226991835,0.1191978,83926.0,83925.0,0.0303]
[1743226992445,0.1808978,83926.0,83925.0,0.0303]
[1743226992846,0.1192021,83923.0,83922.0,0.0001787]
[1743226993734,0.1809021,83923.0,83922.0,0.0001787]
[1743226994137,0.1899158,83923.0,83922.0,0.0001787]
[1743226994834,0.1919158,83923.0,83922.0,0.0001787]
[1743226998749,0.24986711,83923.0,83922.0,0.0001787]
[1743226999736,0.97146711,83923.0,83922.0,0.0001787]
[1743227007149,0.24986711,83923.0,83922.0,0.0001787]
[1743227007351,0.97146711,83923.0,83922.0,0.0001787]
[1743227007652,0.24986711,83923.0,83922.0,0.0001787]
[1743227007954,0.97146711,83923.0,83922.0,0.0001787]
[1743227008948,0.24986711,83923.0,83922.0,0.0001787]
[1743227009149,0.97146711,83923.0,83922.0,0.0001787]
[1743227009659,0.24986711,83923.0,83922.0,0.0001787]
[1743227009851,0.97146711,83923.0,83922.0,0.0001787]
[1743227010745,0.90976711,83923.0,83922.0,0.1193822]
[1743227010957,1.01535341,83923.0,83922.0,0.0018187]
[1743227011160,1.01535341,83923.0,83922.0,0.1193822]
[1743227011459,0.65455341,83923.0,83922.0,0.0001787]
[1743227011846,0.65255341,83923.0,83922.0,0.0017387]
[1743227012049,0.65455341,83923.0,83922.0,0.0650387]
[1743227012256,0.65455341,83923.0,83922.0,0.1842422]
[1743227013247,0.53535131,83923.0,83922.0,0.1842422]
[1743227013856,0.42075131,83923.0,83922.0,0.1842422]
[1743227014657,0.41875131,83923.0,83922.0,0.1842422]
[1743227014864,0.42075131,83923.0,83922.0,0.1842422]
[1743227015454,0.53995341,83923.0,83922.0,0.1962056]
[1743227015748,0.4820021,83923.0,83922.0,0.1962056]
[1743227016862,0.4820021,83923.0,83922.0,0.2438656]
[1743227017866,0.002,83923.0,83922.0,0.2438656]
[1743227021560,0.1212021,83923.0,83922.0,0.2438656]
[1743227024867,0.002,83923.0,83922.0,0.2438656]
[1743227025964,0.1212021,83923.0,83922.0,0.2438656]
[1743227026667,0.1212021,83923.0,83922.0,0.2319022]
[1743227032971,0.1329861,83923.0,83922.0,0.2319022]
[1743227033270,0.1212021,83923.0,83922.0,0.2319022]
[1743227034865,0.1861021,83923.0,83922.0,0.2319022]
[1743227041881,0.1861021,83923.0,83922.0,0.1686022]
[1743227043078,0.1861021,83923.0,83922.0,0.1993022]
[1743227054081,0.1861021,83923.0,83922.0,0.0800987]
[1743227054885,0.1861021,83923.0,83922.0,0.1993022]
[1743227057185,0.5469021,83923.0,83922.0,0.1993022]
[1743227061895,0.5469021,83923.0,83922.0,0.2299022]
[1743227062094,0.6614221,83923.0,83922.0,0.2299022]
[1743227063793,0.4277,83923.0,83922.0,0.2299022]
[1743227064090,0.3608,83929.0,83928.0,0.119195]
[1743227064290,0.17785137,83933.0,83932.0,0.1191893]
[1743227064485,0.17785137,83933.0,83932.0,0.16596186]
[1743227064685,0.29703927,83933.0,83932.0,0.13596186]
[1743227065086,0.29703927,83933.0,83932.0,0.19946186]
[1743227065492,0.29703927,83933.0,83932.0,0.1842493]
[1743227066094,0.29703927,83933.0,83932.0,0.19590706]
[1743227067293,0.29703927,83933.0,83932.0,0.24355706]
[1743227067689,0.1191879,83933.0,83932.0,0.24355706]
[1743227070695,0.1787784,83935.0,83934.0,0.1191865]
[1743227070896,0.1787784,83935.0,83934.0,0.1207465]
[1743227071486,0.0595925,83935.0,83934.0,0.1207465]
[1743227071692,0.3608,83936.0,83935.0,0.119185]